bitfinex/quotes_BTCUSD_20210402
["timestamp","ask_amount","ask_price","bid_price","bid_amount"]
[1617352215807,0.0004,59536.0,59535.0,0.37466797]
[1617352216122,0.03953862,59549.0,59544.0,0.02]
[1617352216328,0.0008,59553.0,59547.0,3.38626695]
[1617352216524,0.0008,59553.0,59552.0,0.11262293]
[1617352216724,0.0008,59553.0,59552.0,1.36668547]
[1617352216924,0.0008,59562.0,59553.0,0.52449476]
[1617352217128,0.0008,59562.0,59558.0,0.47059397]
[1617352217328,0.0008,59566.0,59562.0,0.0056]
[1617352217516,0.0008,59566.0,59562.0,0.795806]
[1617352217723,0.0008,59566.0,59562.0,1.46027169]
[1617352217920,0.0008,59566.0,59562.0,2.69799464]
[1617352218129,0.00019474,59570.0,59563.0,1.70025254]
[1617352218323,0.00019474,59570.0,59567.0,0.387626]
[1617352218523,0.00019474,59570.0,59569.0,0.37466797]
[1617352218716,0.00019474,59570.0,59569.0,0.86229397]
[1617352218947,0.00019474,59570.0,59569.0,1.29729397]
[1617352219145,0.00019474,59570.0,59569.0,1.46329397]
[1617352219351,0.00019474,59570.0,59569.0,1.43329397]
[1617352220550,0.00019474,59570.0,59569.0,1.58389691]
[1617352221347,0.00019474,59570.0,59569.0,1.68992502]
[1617352222376,0.00019474,59570.0,59569.0,1.70622502]
[1617352222581,0.00059474,59575.0,59569.0,2.03622502]
[1617352222779,0.00059474,59575.0,59573.0,0.387626]
[1617352222979,0.00059474,59575.0,59574.0,0.387626]
[1617352223381,0.00059474,59575.0,59574.0,0.487626]
[1617352223578,0.00059474,59575.0,59574.0,1.42453958]
[1617352223776,0.00059474,59575.0,59574.0,1.27729397]
[1617352224396,0.00059474,59575.0,59574.0,1.59866397]
[1617352224595,0.00059474,59575.0,59574.0,1.74563175]
[1617352225075,8.459e-05,59578.0,59574.0,1.74563175]
[1617352225275,8.459e-05,59578.0,59575.0,1.48093492]
[1617352225473,8.459e-05,59578.0,59577.0,0.34466797]
[1617352225680,8.459e-05,59578.0,59577.0,1.23150505]
[1617352226076,8.459e-05,59578.0,59577.0,1.37972777]
[1617352226475,8.459e-05,59578.0,59577.0,1.63472777]
[1617352226890,8.459e-05,59578.0,59577.0,2.65724316]
[1617352227090,8.459e-05,59578.0,59577.0,2.15724316]
[1617352227295,0.0012,59582.0,59577.0,2.15724316]
[1617352227497,0.97636966,59585.0,59580.0,0.34466797]
[1617352227693,0.97636966,59585.0,59583.0,0.1]
[1617352227894,0.97636966,59585.0,59584.0,3.35466797]
[1617352228090,0.97636966,59585.0,59584.0,1.47150505]
[1617352228491,0.97136966,59585.0,59584.0,2.10096835]
[1617352228696,0.96636966,59585.0,59584.0,4.72286519]
[1617352229095,0.96636966,59585.0,59584.0,1.71286519]
[1617352229495,0.96636966,59585.0,59584.0,1.86436819]
[1617352229699,0.96636966,59585.0,59584.0,5.04903616]
[1617352229900,0.96636966,59585.0,59584.0,5.27442545]
[1617352230101,0.96636966,59585.0,59584.0,4.92975748]
[1617352231498,0.96636966,59585.0,59584.0,4.94605748]
[1617352231698,0.96636966,59585.0,59584.0,5.41605748]
[1617352231902,0.0012,59586.0,59584.0,5.41605748]
[1617352232122,0.0012,59586.0,59585.0,4.01463533]
[1617352232322,0.00374149,59586.0,59585.0,5.35963533]
[1617352232520,0.00174149,59586.0,59585.0,5.72499998]
[1617352232721,0.00174149,59586.0,59585.0,5.83102809]
[1617352233125,4.149e-05,59590.0,59586.0,2.09]
[1617352233324,4.149e-05,59590.0,59589.0,0.76389295]
[1617352233533,0.9117,59610.0,59591.0,0.1]
[1617352233725,0.002,59599.0,59593.0,0.1]
[1617352233926,0.002,59599.0,59594.0,1.16310403]
[1617352234123,0.0032,59601.0,59596.0,0.37626695]
[1617352234327,0.0032,59601.0,59598.0,0.34466797]
[1617352234526,0.0032,59601.0,59599.0,3.74229397]
[1617352234749,0.0012,59601.0,59599.0,4.6876666]
[1617352234942,0.0012,59601.0,59599.0,1.45229397]
[1617352235546,0.0002,59604.0,59600.0,2.0]
[1617352235744,0.0002,59604.0,59601.0,0.83229397]
[1617352235946,0.0002,59604.0,59601.0,0.46792029]
[1617352236946,0.0442,59606.0,59602.0,2.73]
[1617352237145,0.85177219,59605.0,59602.0,0.43]
[1617352237384,0.387396,59604.0,59602.0,0.24]
[1617352237777,1.23916819,59604.0,59602.0,0.24]
[1617352237976,1.04177219,59603.0,59602.0,0.24]
[1617352238182,0.387396,59603.0,59602.0,0.24]
[1617352238377,0.387396,59603.0,59601.0,0.17182]
[1617352238580,0.0004,59606.0,59601.0,0.07182]
[1617352238781,0.0004,59606.0,59602.0,0.0163]
[1617352238983,0.387396,59605.0,59602.0,0.00756667]
[1617352239183,0.0004,59606.0,59602.0,1.49856667]
[1617352239585,0.0004,59606.0,59603.0,0.1]
[1617352240209,1.04177219,59605.0,59603.0,0.1]
[1617352240409,0.85177219,59604.0,59603.0,0.1]
[1617352240808,1.08177219,59605.0,59603.0,0.1]
[1617352241009,0.0004,59606.0,59603.0,0.1]
[1617352241218,0.0004,59606.0,59604.0,0.387396]
[1617352241613,0.0004,59606.0,59605.0,0.1]
[1617352242012,0.0004,59606.0,59605.0,0.10756667]
[1617352242641,0.0004,59606.0,59605.0,0.00756667]
[1617352242843,0.0004,59606.0,59605.0,0.90756667]
[1617352243242,0.85247731,59606.0,59605.0,0.90756667]
[1617352243442,0.89247731,59606.0,59605.0,0.80756667]
[1617352243642,0.42810112,59606.0,59605.0,0.99756667]
[1617352244040,1.27987331,59606.0,59605.0,0.99756667]
[1617352244240,0.42810112,59606.0,59605.0,0.80756667]
[1617352244842,0.42810112,59606.0,59604.0,0.08399282]
[1617352245042,0.387396,59605.0,59602.0,0.1]
[1617352245448,0.387396,59605.0,59603.0,0.24]
[1617352245647,0.387396,59605.0,59604.0,0.8]
[1617352245850,0.04,59605.0,59604.0,0.8]
[1617352246053,1.05177219,59605.0,59600.0,0.04092813]
[1617352246257,1.30630652,59604.0,59600.0,0.04092813]
[1617352246454,0.164,59601.0,59600.0,0.04092813]
[1617352246651,1.44316819,59601.0,59600.0,0.04092813]
[1617352247052,1.44316819,59601.0,59600.0,0.84092813]
[1617352247257,1.84995019,59601.0,59600.0,0.84092813]
[1617352247650,0.998178,59601.0,59600.0,0.84092813]
[1617352247866,0.610782,59601.0,59600.0,1.65092813]
[1617352248070,1.46255419,59601.0,59600.0,0.84092813]
[1617352248268,0.998178,59601.0,59600.0,0.84092813]
[1617352249067,0.998178,59601.0,59600.0,0.8]
[1617352249868,0.998178,59601.0,59598.0,0.8025]
[1617352250069,0.387396,59600.0,59598.0,0.8025]
[1617352250270,0.195,59599.0,59598.0,0.8025]
[1617352253129,1.35856831,59599.0,59598.0,0.0025]
[1617352253331,3.51596431,59599.0,59598.0,0.0025]
[1617352253730,1.79596431,59599.0,59598.0,0.0025]
[1617352253924,1.7962645,59599.0,59598.0,0.0025]
[1617352254326,4.0162645,59599.0,59598.0,0.0025]
[1617352254522,0.89449231,59599.0,59598.0,0.0025]
[1617352254727,1.9980725,59599.0,59598.0,0.0025]
[1617352254926,1.84027638,59599.0,59598.0,0.0025]
[1617352255354,2.73027638,59599.0,59598.0,0.0025]
[1617352255950,1.89027638,59599.0,59598.0,0.0025]
[1617352257354,4.90027638,59599.0,59598.0,0.0025]
[1617352257563,3.01,59598.0,59594.0,0.16807]
[1617352257761,3.84733974,59595.0,59594.0,0.16807]
[1617352257961,5.55227717,59595.0,59594.0,0.16807]
[1617352258160,5.40721504,59595.0,59594.0,0.16807]
[1617352258585,7.3039418,59595.0,59594.0,0.16807]
[1617352258778,7.3039418,59595.0,59594.0,0.16588]
[1617352258980,6.3631488,59595.0,59594.0,0.16588]
[1617352259384,6.96831404,59595.0,59594.0,0.16588]
[1617352259584,7.90410704,59595.0,59594.0,0.16588]
[1617352259780,7.5489418,59595.0,59594.0,0.16588]
[1617352260180,7.5489418,59595.0,59594.0,8e-05]
[1617352260385,0.156,59575.0,59568.0,0.167]
[1617352260590,0.04,59574.0,59569.0,0.387396]
[1617352262001,0.03952836,59577.0,59569.0,0.387396]
[1617352262206,0.29143553,59580.0,59566.0,0.05008019]
[1617352262406,0.04,59579.0,59568.0,0.004]
[1617352262603,0.08257445,59579.0,59563.0,0.0046]
[1617352262807,0.105126,59575.0,59563.0,0.0046]
[1617352263009,0.107126,59575.0,59564.0,0.14822781]
[1617352263206,0.10512609,59574.0,59564.0,0.14822781]
[1617352263403,0.10512609,59574.0,59564.0,0.19828961]
[1617352264028,0.002,59575.0,59565.0,0.14822781]
[1617352264225,0.31907224,59580.0,59567.0,0.0044]
[1617352264226,0.00503724,59579.0,59567.0,0.0044]
[1617352264430,0.002,59579.0,59568.0,0.14822781]
[1617352265225,0.002,59579.0,59570.0,0.1]
[1617352265428,0.002,59579.0,59571.0,0.53562381]
[1617352265633,0.7347,59590.0,59572.0,0.325]
[1617352265833,0.7347,59590.0,59575.0,0.0046]
[1617352266029,0.7367,59590.0,59579.0,0.251824]
[1617352266264,0.7367,59590.0,59580.0,0.1042]
[1617352266458,0.425,59587.0,59580.0,0.1042]
[1617352267457,0.387396,59586.0,59580.0,0.0042]
[1617352267861,0.52,59585.0,59580.0,0.0042]
[1617352268061,0.782396,59584.0,59578.0,0.10602811]
[1617352268260,0.395,59584.0,59575.0,5.1]
[1617352268462,0.002,59586.0,59576.0,0.391396]
[1617352268660,0.002,59586.0,59577.0,0.1]
[1617352268881,0.002,59586.0,59578.0,0.387396]
[1617352269283,0.002,59586.0,59577.0,0.1]
[1617352269485,0.002,59586.0,59575.0,5.0]
[1617352269684,0.29039309,59585.0,59575.0,5.0]
[1617352269884,0.04,59584.0,59575.0,5.0]
[1617352270079,0.04,59584.0,59576.0,0.387396]
[1617352270296,0.195,59583.0,59576.0,0.387396]
[1617352270491,0.18,59582.0,59576.0,0.387396]
[1617352270702,0.04,59584.0,59576.0,0.387396]
[1617352273006,0.04039309,59585.0,59576.0,0.387396]
[1617352273406,0.225,59584.0,59576.0,0.387396]
[1617352273609,0.225,59584.0,59575.0,5.16]
[1617352274227,0.225,59584.0,59576.0,0.387396]
[1617352274631,0.225,59584.0,59575.0,5.16]
[1617352274632,0.476881,59584.0,59575.0,5.16]
[1617352274830,0.235,59583.0,59575.0,5.16]
[1617352276235,0.16,59580.0,59575.0,0.16]
[1617352276443,0.387396,59579.0,59562.0,0.10602811]
[1617352276636,0.04,59578.0,59562.0,0.10602811]
[1617352276860,0.002,59577.0,59562.0,0.10602811]
[1617352277258,0.002,59577.0,59565.0,0.387396]
[1617352277664,0.165,59573.0,59565.0,0.387396]
[1617352278063,0.251928,59574.0,59565.0,0.387396]
[1617352278263,0.405928,59574.0,59565.0,0.387396]
[1617352278657,0.251928,59574.0,59565.0,0.387396]
[1617352279067,0.00460902,59577.0,59566.0,0.1]
[1617352279262,0.00460902,59577.0,59567.0,0.387396]
[1617352279681,0.00460902,59577.0,59568.0,0.1]
[1617352280489,0.00038677,59576.0,59563.0,0.004]
[1617352280684,0.00038677,59576.0,59566.0,0.1]
[1617352280884,0.00038677,59576.0,59567.0,0.387396]
[1617352281091,0.00038677,59576.0,59563.0,0.004]
[1617352281486,0.00038677,59576.0,59561.0,0.1]
[1617352281889,0.00038677,59576.0,59558.0,0.1]
[1617352282112,0.161,59574.0,59557.0,0.16723301]
[1617352282317,0.679327,59573.0,59557.0,0.16723301]
[1617352282516,0.2,59572.0,59557.0,0.16723301]
[1617352282719,0.154,59567.0,59557.0,0.00023301]
[1617352282917,1.873,59558.0,59557.0,0.00023301]
[1617352283110,3.460396,59558.0,59557.0,0.00023301]
[1617352283715,3.46298611,59558.0,59557.0,0.00023301]
[1617352283906,2.26298611,59558.0,59557.0,0.00023301]
[1617352284109,1.06298611,59558.0,59557.0,0.00023301]
[1617352284314,0.51298611,59558.0,59549.0,0.01585]
[1617352284513,0.12559011,59558.0,59549.0,0.01585]
[1617352284743,0.12559011,59558.0,59550.0,0.387396]
[1617352285247,0.12559011,59558.0,59557.0,0.72]
[1617352285446,0.12559011,59558.0,59557.0,0.487396]
[1617352285854,0.12559011,59558.0,59557.0,0.1]
[1617352286050,0.51298611,59558.0,59557.0,0.1]
[1617352286549,0.12559011,59558.0,59557.0,0.1]
[1617352287276,0.00259011,59558.0,59557.0,0.1]
[1617352287477,0.28,59557.0,59549.0,0.01585]
[1617352287684,0.27,59556.0,59549.0,0.01585]
[1617352287877,0.19559011,59558.0,59550.0,0.387396]
[1617352289282,0.19559011,59558.0,59551.0,0.1]
[1617352289475,0.19559011,59558.0,59553.0,0.1]
[1617352289678,0.19559011,59558.0,59554.0,0.387396]
[1617352290883,0.19559011,59558.0,59549.0,0.01585]
[1617352291087,0.19559011,59558.0,59550.0,0.387396]
[1617352291288,0.19559011,59558.0,59549.0,0.01585]
[1617352291489,0.00048005,59557.0,59549.0,0.01585]
[1617352293511,0.27257341,59557.0,59549.0,0.01585]
[1617352293709,0.14,59556.0,59549.0,0.01585]
[1617352294311,0.387396,59555.0,59549.0,0.01585]
[1617352295135,0.369856,59555.0,59549.0,0.01585]
[1617352295530,0.14,59554.0,59549.0,0.01585]
[1617352295728,0.189,59550.0,59549.0,0.01585]
[1617352296335,0.189,59550.0,59549.0,0.16407781]
[1617352296535,0.189,59550.0,59549.0,0.55162881]
[1617352296734,0.189,59550.0,59549.0,0.65162881]
[1617352296931,0.16236189,59550.0,59549.0,3.66162881]
[1617352297134,0.16236189,59550.0,59549.0,3.40662881]
[1617352298360,0.16236189,59550.0,59549.0,3.65858181]
[1617352298958,0.16236189,59550.0,59549.0,1.61858181]
[1617352299159,0.1538752,59550.0,59549.0,4.01858181]
[1617352299563,0.1538752,59550.0,59549.0,4.25858181]
[1617352299964,0.1538752,59550.0,59549.0,4.62858181]
[1617352299965,0.1138752,59550.0,59549.0,4.62858181]
[1617352300161,0.1138752,59550.0,59549.0,4.67858181]
[1617352300414,0.00048005,59557.0,59549.0,4.48265692]
[1617352300599,0.00048005,59557.0,59556.0,3.16875278]
[1617352300798,0.00048005,59557.0,59556.0,3.65630378]
[1617352300996,0.00048005,59557.0,59556.0,3.90821578]
[1617352301396,0.00048005,59557.0,59556.0,4.04821578]
[1617352301996,0.00048005,59557.0,59556.0,1.03821578]
[1617352302196,0.00048005,59557.0,59556.0,1.03844879]
[1617352302795,0.00048005,59557.0,59556.0,1.99844879]
[1617352303805,0.00048005,59557.0,59556.0,2.70844879]
[1617352304007,0.00048005,59557.0,59556.0,1.99844879]
[1617352304804,0.00048005,59557.0,59556.0,2.49844879]
[1617352305007,0.00048005,59557.0,59556.0,1.99844879]
[1617352305404,0.00048005,59557.0,59556.0,1.03844879]
[1617352306829,0.00048005,59557.0,59556.0,2.12844879]
[1617352308031,0.00048005,59557.0,59556.0,1.03844879]
[1617352308859,0.00048005,59557.0,59556.0,2.82844879]
[1617352309457,0.00048005,59557.0,59556.0,1.03844879]
[1617352309658,0.00048005,59557.0,59556.0,1.08844879]
[1617352309864,0.00048005,59557.0,59556.0,2.7766766]
[1617352310258,0.00048005,59557.0,59556.0,2.7266766]
[1617352310894,0.00048005,59557.0,59556.0,2.57844879]
[1617352312494,0.00048005,59557.0,59556.0,1.03844879]
[1617352312689,0.00048005,59557.0,59556.0,1.79844879]
[1617352312890,0.00048005,59557.0,59556.0,1.03844879]
[1617352313706,0.00048005,59557.0,59556.0,0.89844879]
[1617352314305,0.00048005,59557.0,59556.0,0.89821578]
[1617352314706,0.00048005,59557.0,59556.0,1.86821578]
[1617352314909,0.00048005,59557.0,59556.0,2.21321578]
[1617352315323,0.00048005,59557.0,59556.0,1.24321578]
[1617352316736,0.00048005,59557.0,59556.0,0.89821578]
[1617352317739,0.00048005,59557.0,59556.0,1.50821578]
[1617352318534,0.00048005,59557.0,59556.0,1.50851578]
[1617352318759,0.00048005,59557.0,59556.0,0.89851578]
[1617352319758,0.00048005,59557.0,59556.0,2.70351578]
[1617352320571,0.00259011,59558.0,59557.0,3.25]
[1617352320761,0.00259011,59558.0,59557.0,4.682551]
[1617352321164,0.00259011,59558.0,59557.0,4.682851]
[1617352321386,0.00259011,59558.0,59557.0,1.672851]
[1617352321587,0.00259011,59558.0,59557.0,0.727851]
[1617352321986,0.00259011,59558.0,59557.0,0.487851]
[1617352322192,0.00259011,59558.0,59557.0,0.7554752]
[1617352322389,0.00259011,59558.0,59557.0,0.487851]
[1617352322594,0.00259011,59558.0,59557.0,0.7554752]
[1617352322788,0.00259011,59558.0,59557.0,1.0104752]
[1617352323191,0.00259011,59558.0,59557.0,1.15870301]
[1617352323397,0.6409,59569.0,59558.0,0.14822781]
[1617352323599,0.6409,59569.0,59568.0,0.68304217]
[1617352323798,0.6409,59569.0,59568.0,0.56152148]
[1617352324022,1.473451,59569.0,59568.0,0.46152148]
[1617352324219,1.473451,59569.0,59568.0,0.46182148]
[1617352324413,1.473451,59569.0,59568.0,0.41153626]
[1617352324812,1.318451,59569.0,59568.0,0.41153626]
[1617352325016,1.318451,59569.0,59568.0,0.10601626]
[1617352325812,1.71839474,59569.0,59568.0,0.10601626]
[1617352326016,1.318451,59569.0,59568.0,0.10601626]
[1617352326211,1.71839474,59569.0,59568.0,0.10601626]
[1617352326421,1.318451,59569.0,59568.0,0.10601626]
[1617352326629,1.7181487,59569.0,59568.0,0.10601626]
[1617352326835,1.31820496,59569.0,59568.0,0.10601626]
[1617352327833,2.31820496,59569.0,59568.0,0.10601626]
[1617352328033,1.31820496,59569.0,59568.0,0.10601626]
[1617352328832,2.31820496,59569.0,59568.0,0.10601626]
[1617352329040,2.75770473,59569.0,59568.0,0.10601626]
[1617352329259,2.40776099,59569.0,59568.0,0.10601626]
[1617352329459,1.40776099,59569.0,59568.0,0.10601626]
[1617352329662,1.77200014,59569.0,59568.0,0.10601626]
[1617352329860,1.3720564,59569.0,59568.0,0.10601626]
[1617352331162,2.3720564,59569.0,59568.0,0.10601626]
[1617352331369,2.81821014,59569.0,59568.0,0.10601626]
[1617352331576,6.63753369,59569.0,59568.0,0.10601626]
[1617352331766,6.63753369,59569.0,59568.0,0.0003]
[1617352331767,6.57819738,59569.0,59568.0,0.0003]
[1617352332216,0.35516524,59568.0,59558.0,0.0003]
[1617352332418,1.69445826,59567.0,59558.0,0.0003]
[1617352332623,0.00296301,59560.0,59558.0,0.0003]
[1617352332818,2.38051401,59559.0,59558.0,0.0003]
[1617352333018,0.78749474,59559.0,59558.0,0.0003]
[1617352333218,0.892551,59559.0,59558.0,0.0003]
[1617352333417,0.387551,59559.0,59558.0,0.0003]
[1617352333619,0.390514,59559.0,59558.0,0.0003]
[1617352334221,0.38797283,59559.0,59558.0,0.0003]
[1617352334418,0.52797283,59559.0,59558.0,0.0003]
[1617352334816,0.53378698,59559.0,59558.0,0.0003]
[1617352335216,0.53378698,59559.0,59556.0,0.10712091]
[1617352335417,0.58378698,59559.0,59556.0,0.10712091]
[1617352335619,0.58181237,59559.0,59556.0,0.10712091]
[1617352335820,0.53150237,59559.0,59556.0,0.10712091]
[1617352337248,0.53150237,59559.0,59556.0,0.35906491]
[1617352337649,0.53347697,59559.0,59556.0,0.10712091]
[1617352338049,0.53150237,59559.0,59556.0,0.10712091]
[1617352338850,0.58347697,59559.0,59556.0,0.10712091]
[1617352339045,0.53347697,59559.0,59556.0,0.10712091]
[1617352339251,0.51347697,59559.0,59556.0,0.10712091]
[1617352340064,0.51601961,59559.0,59556.0,0.10712091]
[1617352340267,0.51404501,59559.0,59556.0,0.10104522]
[1617352340464,0.51601961,59559.0,59556.0,0.10104522]
[1617352340869,0.51404501,59559.0,59556.0,0.10104522]
[1617352343100,0.51601961,59559.0,59556.0,0.10104522]
[1617352344303,0.00197514,59558.0,59556.0,0.10104522]
[1617352344496,0.387551,59557.0,59556.0,0.10104522]
[1617352345404,0.3900937,59557.0,59556.0,0.10104522]
[1617352345798,0.0025427,59557.0,59556.0,0.10104522]
[1617352348000,0.3900767,59557.0,59556.0,0.10104522]
[1617352348200,0.0025427,59557.0,59556.0,0.10104522]
[1617352348597,0.0025427,59557.0,59556.0,0.48857922]
[1617352348800,0.0025427,59557.0,59556.0,0.58857922]
[1617352349203,0.0025427,59557.0,59556.0,0.20104522]
[1617352349598,0.0025427,59557.0,59556.0,0.58857922]
[1617352351602,0.0025427,59557.0,59556.0,0.58357922]
[1617352352401,0.1187283,59557.0,59556.0,0.58357922]
[1617352352604,0.0025427,59557.0,59556.0,0.58357922]
[1617352352807,0.11872684,59557.0,59556.0,0.58357922]
[1617352353001,0.11872684,59557.0,59556.0,0.84809128]
[1617352353202,0.00042183,59559.0,59556.0,0.84809128]
[1617352353406,0.00042183,59559.0,59557.0,0.65188308]
[1617352353606,0.03955501,59564.0,59557.0,0.487534]
[1617352353806,0.03955525,59563.0,59558.0,0.73]
[1617352354006,0.18955525,59563.0,59559.0,0.251931]
[1617352354209,0.03955525,59563.0,59559.0,0.251931]
[1617352354408,0.15343727,59562.0,59559.0,0.251931]
[1617352354609,0.03955549,59563.0,59559.0,0.251931]
[1617352355007,0.1141731,59561.0,59559.0,0.251931]
[1617352355209,0.03955549,59563.0,59559.0,0.251931]
[1617352355622,0.00037016,59560.0,59559.0,0.251931]
[1617352355830,0.00037016,59560.0,59559.0,0.639465]
[1617352356027,0.19030986,59568.0,59561.0,0.1]
[1617352356225,0.64065396,59569.0,59567.0,0.09720016]
[1617352356428,0.387534,59568.0,59567.0,0.09720016]
[1617352357218,1.247534,59568.0,59567.0,0.09720016]
[1617352357422,1.672534,59568.0,59567.0,0.09720016]
[1617352357820,0.812534,59568.0,59567.0,0.09720016]
[1617352358851,1.062356,59568.0,59567.0,0.09720016]
[1617352359055,0.862534,59568.0,59567.0,0.09720016]
[1617352359251,1.482534,59568.0,59567.0,0.09720016]
[1617352360660,1.21247774,59568.0,59567.0,0.09720016]
[1617352360920,0.812534,59568.0,59567.0,0.09720016]
[1617352361303,1.382534,59568.0,59567.0,0.09720016]
[1617352361503,0.812534,59568.0,59567.0,0.09720016]
[1617352361907,1.012356,59568.0,59567.0,0.09720016]
[1617352362110,0.812534,59568.0,59567.0,0.09720016]
[1617352364109,0.812534,59568.0,59565.0,0.251901]
[1617352364313,0.199822,59567.0,59563.0,0.1]
[1617352364513,0.90150398,59566.0,59563.0,0.1]
[1617352364907,0.11397063,59565.0,59563.0,0.1]
[1617352365108,1.837534,59564.0,59563.0,0.1]
[1617352365309,2.222534,59564.0,59563.0,0.1]
[1617352365508,0.88650472,59564.0,59563.0,0.09972665]
[1617352365911,0.772534,59564.0,59563.0,0.09972665]
[1617352366128,0.38786036,59564.0,59563.0,0.09972665]
[1617352367530,0.00032636,59564.0,59563.0,0.09972665]
[1617352367730,0.18932836,59569.0,59563.0,0.09972665]
[1617352367934,0.345,59568.0,59563.0,0.09972665]
[1617352368534,0.387534,59567.0,59563.0,0.09972665]
[1617352368756,0.387534,59567.0,59562.0,1.0]
[1617352368953,0.509822,59566.0,59562.0,1.0]
[1617352369156,0.702534,59565.0,59562.0,1.0]
[1617352370951,0.702534,59565.0,59563.0,0.1]
[1617352371380,1.435,59564.0,59563.0,0.1]
[1617352371579,1.822534,59564.0,59563.0,0.1]
[1617352371780,0.682534,59564.0,59563.0,0.1]
[1617352371985,0.387534,59564.0,59562.0,1.0]
[1617352372182,1.2,59563.0,59562.0,1.0]
[1617352372379,1.587534,59563.0,59562.0,1.0]
[1617352372580,0.387534,59563.0,59562.0,1.0]
[1617352372781,0.03951545,59567.0,59562.0,1.0]
[1617352372979,0.657534,59566.0,59562.0,1.0]
[1617352373179,0.707534,59566.0,59564.0,0.11486911]
[1617352373581,0.657534,59566.0,59564.0,0.11486911]
[1617352373791,3.17976574,59565.0,59564.0,0.11486911]
[1617352374014,4.11747774,59565.0,59564.0,0.11486911]
[1617352374210,1.137534,59565.0,59564.0,0.11486911]
[1617352375007,1.727534,59565.0,59564.0,0.11486911]
[1617352375215,1.137534,59565.0,59564.0,0.11486911]
[1617352375491,0.387534,59565.0,59564.0,0.11486911]
[1617352376732,0.38782027,59565.0,59564.0,0.11486911]
[1617352376935,0.38782027,59565.0,59563.0,0.1]
[1617352377134,1.235,59564.0,59563.0,0.1]
[1617352377332,0.622534,59564.0,59563.0,0.1]
[1617352377537,0.622534,59564.0,59555.0,0.11120178]
[1617352377740,0.387534,59563.0,59555.0,0.11520178]
[1617352377933,0.03954843,59562.0,59555.0,0.11520178]
[1617352378132,0.387534,59561.0,59555.0,0.11520178]
[1617352378334,0.387534,59561.0,59557.0,0.251933]
[1617352379556,0.42708295,59561.0,59556.0,0.1]
[1617352379954,0.42708295,59561.0,59555.0,0.11520178]
[1617352380559,0.387534,59561.0,59556.0,0.007]
[1617352381361,0.0671839,59562.0,59557.0,0.251934]
[1617352381564,0.03954742,59564.0,59557.0,0.251934]
[1617352382585,0.387534,59563.0,59557.0,0.251934]
[1617352382788,0.135,59562.0,59557.0,0.251934]
[1617352383188,0.03954779,59563.0,59558.0,0.007]
[1617352383392,0.11666032,59561.0,59558.0,0.007]
[1617352383588,0.15620892,59564.0,59558.0,0.007]
[1617352383797,0.387534,59563.0,59557.0,0.007]
[1617352384001,0.165,59558.0,59555.0,0.11120178]
[1617352384213,0.165,59558.0,59549.0,0.01585]
[1617352384214,3.367363,59556.0,59549.0,0.01585]
[1617352384421,0.387534,59552.0,59549.0,0.01585]
[1617352384616,3.74269924,59550.0,59549.0,0.01585]
[1617352384823,7.49845414,59550.0,59549.0,0.01585]
[1617352385018,4.0,59549.0,59541.0,0.00023315]
[1617352385215,0.387534,59545.0,59541.0,0.00023315]
[1617352385415,3.78747774,59542.0,59541.0,0.00023315]
[1617352385617,5.07955574,59542.0,59541.0,0.00023315]
[1617352385809,0.35820248,59541.0,59525.0,0.07170199]
[1617352386011,0.0702578,59534.0,59525.0,0.82170199]
[1617352386210,0.05,59534.0,59525.0,0.82170199]
[1617352386417,0.387534,59533.0,59525.0,0.82170199]
[1617352387441,0.14536616,59532.0,59526.0,0.006]
[1617352387637,0.00036616,59532.0,59526.0,0.106]
[1617352388039,0.00036616,59532.0,59526.0,0.1]
[1617352388642,0.00036616,59532.0,59527.0,0.17385699]
[1617352388838,0.00036616,59532.0,59527.0,0.16785699]
[1617352389877,0.00036616,59532.0,59527.0,0.17385699]
[1617352391152,0.00351905,59532.0,59527.0,0.17385699]
[1617352391345,0.00351905,59532.0,59528.0,0.23]
[1617352391744,0.00351905,59532.0,59529.0,0.007]
[1617352392559,0.00351905,59532.0,59528.0,0.1]
[1617352392959,0.00351905,59532.0,59526.0,0.1]
[1617352394163,0.00351905,59532.0,59525.0,0.07170199]
[1617352394560,0.00351905,59532.0,59525.0,0.17170199]
[1617352395167,0.00351905,59532.0,59526.0,0.387534]
[1617352395765,0.00351905,59532.0,59527.0,0.1]
[1617352395966,0.00351905,59532.0,59528.0,0.387534]
[1617352396169,0.00351905,59532.0,59529.0,0.252049]
[1617352396367,0.00351905,59532.0,59529.0,0.352049]
[1617352396571,0.00351905,59532.0,59529.0,0.252049]
[1617352398594,0.00351905,59532.0,59525.0,0.32376899]
[1617352398789,0.00231905,59532.0,59526.0,0.1]
[1617352399195,0.00231905,59532.0,59525.0,0.32376899]
[1617352399393,0.00231905,59532.0,59525.0,0.07170199]
[1617352400608,0.00231905,59532.0,59525.0,0.17170199]
[1617352402216,0.00231905,59532.0,59525.0,0.07170199]
[1617352402419,0.00231905,59532.0,59527.0,0.12565547]
[1617352406090,0.00231905,59532.0,59525.0,0.17170199]
[1617352407488,0.00231905,59532.0,59525.0,0.07170199]
[1617352407694,0.00231905,59532.0,59526.0,0.01966397]
[1617352407897,0.00330828,59532.0,59525.0,0.07170199]
[1617352408096,0.00231905,59532.0,59525.0,0.32377099]
[1617352408292,0.00231905,59532.0,59526.0,0.1]
[1617352409303,0.00231905,59532.0,59528.0,0.252056]
[1617352411319,0.00231905,59532.0,59529.0,0.387534]
[1617352411516,0.00231905,59532.0,59530.0,0.245]
[1617352412115,0.00231905,59532.0,59530.0,0.1]
[1617352412714,0.00231905,59532.0,59528.0,0.252056]
[1617352413125,0.00231905,59532.0,59529.0,0.387534]
[1617352413339,0.00231905,59532.0,59530.0,0.1]
[1617352414336,0.00231905,59532.0,59530.0,0.252036]
[1617352414535,0.00231905,59532.0,59531.0,0.1]
[1617352414742,0.00231905,59532.0,59530.0,0.252036]
[1617352415338,0.00231905,59532.0,59528.0,0.252056]
[1617352415737,0.30231905,59532.0,59528.0,0.252056]
[1617352415966,0.00231905,59532.0,59528.0,0.252056]
[1617352416770,0.00231905,59532.0,59528.0,0.504107]
[1617352416969,0.00291905,59532.0,59528.0,0.504107]
[1617352417167,0.00291905,59532.0,59531.0,0.13666909]
[1617352417369,0.00291905,59532.0,59531.0,1.84666909]